bitfinex/quotes_BTCUSD_20220202
["timestamp","ask_amount","ask_price","bid_price","bid_amount"]
[1643795647028,0.52304499,38545.0,38543.0,0.32802303]
[1643795647230,0.52304499,38545.0,38542.0,0.32928345]
[1643795647231,0.57304499,38545.0,38542.0,0.32928345]
[1643795647428,0.57304499,38545.0,38539.0,0.01940916]
[1643795647429,0.0522,38544.0,38539.0,0.01940916]
[1643795647628,0.0522,38544.0,38542.0,0.00126042]
[1643795647629,0.129751,38543.0,38542.0,0.00126042]
[1643795647828,0.681951,38543.0,38542.0,0.00126042]
[1643795648628,0.681951,38543.0,38539.0,0.03792584]
[1643795648830,0.681951,38543.0,38541.0,0.00126007]
[1643795649429,0.61584812,38543.0,38541.0,0.00126007]
[1643795649831,0.37444657,38535.0,38534.0,0.52302638]
[1643795650033,0.61584812,38543.0,38534.0,0.32802303]
[1643795650329,0.61584812,38543.0,38533.0,0.60715797]
[1643795650331,0.064878,38537.0,38533.0,0.60715797]
[1643795650774,0.064878,38537.0,38534.0,0.32802303]
[1643795651176,0.37277061,38537.0,38534.0,0.32802303]
[1643795651974,0.16210737,38537.0,38534.0,0.39289942]
[1643795652377,0.064878,38537.0,38534.0,0.39415971]
[1643795652575,0.064878,38537.0,38535.0,0.32802303]
[1643795653375,0.08412269,38536.0,38534.0,0.39289942]
[1643795653575,0.13412269,38536.0,38534.0,0.3941597]
[1643795653775,0.064878,38537.0,38534.0,0.3941597]
[1643795654424,0.064878,38537.0,38534.0,0.46932955]
[1643795654622,0.064878,38537.0,38534.0,0.39289942]
[1643795654822,0.064878,38537.0,38534.0,0.39415971]
[1643795655824,0.064878,38537.0,38534.0,0.39289942]
[1643795656027,0.064878,38537.0,38534.0,0.3941597]
[1643795656927,0.064878,38537.0,38534.0,0.39289942]
[1643795657126,0.064878,38537.0,38534.0,0.3941597]
[1643795658177,0.064878,38537.0,38534.0,0.39289942]
[1643795658373,0.064878,38537.0,38534.0,0.3941597]
[1643795659375,0.064878,38537.0,38534.0,0.39289942]
[1643795659577,0.064878,38537.0,38534.0,0.06559494]
[1643795659975,0.064878,38537.0,38535.0,0.07652582]
[1643795660176,0.129732,38541.0,38535.0,0.42626382]
[1643795660376,0.129732,38541.0,38535.0,0.85881712]
[1643795660575,0.2,38545.0,38535.0,0.7822913]
[1643795660775,0.2,38545.0,38536.0,0.09613848]
[1643795660977,0.2,38545.0,38536.0,0.00071851]
[1643795661377,0.07708768,38540.0,38536.0,0.00071851]
[1643795661575,0.07708768,38540.0,38537.0,0.349738]
[1643795661778,0.07708768,38540.0,38537.0,0.41459939]
[1643795662022,0.14194968,38540.0,38537.0,0.399738]
[1643795663123,0.4955416,38540.0,38537.0,0.00138348]
[1643795663524,0.71008104,38540.0,38537.0,0.00138348]
[1643795663724,0.4955416,38540.0,38537.0,0.00138348]
[1643795664124,0.4955416,38540.0,38532.0,0.12974699]
[1643795664324,0.4955416,38540.0,38537.0,0.00138348]
[1643795665325,0.4955416,38540.0,38535.0,0.29103539]
[1643795665523,0.4955416,38540.0,38537.0,0.00138348]
[1643795665773,0.19194968,38540.0,38537.0,0.00138348]
[1643795665973,0.114862,38540.0,38537.0,0.00138348]
[1643795666175,0.114862,38540.0,38537.0,0.34271293]
[1643795666571,0.114862,38540.0,38537.0,0.34132945]
[1643795666772,0.114862,38540.0,38538.0,0.22506939]
[1643795667773,0.064862,38540.0,38538.0,0.22506939]
[1643795668373,0.064862,38540.0,38538.0,0.27506939]
[1643795668774,0.064862,38540.0,38538.0,0.22506939]
[1643795669822,0.114862,38540.0,38538.0,0.22506939]
[1643795670224,0.114862,38540.0,38537.0,0.06487177]
[1643795670423,0.114862,38540.0,38537.0,0.06613937]
[1643795671324,0.114862,38540.0,38537.0,0.30498949]
[1643795671523,0.114862,38540.0,38537.0,0.3062571]
[1643795672325,0.064862,38540.0,38537.0,0.3562571]
[1643795672526,0.064862,38540.0,38537.0,0.35498949]
[1643795672724,0.064862,38540.0,38537.0,0.3562571]
[1643795673873,0.064862,38540.0,38537.0,0.35498949]
[1643795674073,0.064862,38540.0,38537.0,0.35624957]
[1643795675077,0.064862,38540.0,38537.0,0.35498949]
[1643795675276,0.064862,38540.0,38537.0,0.35624957]
[1643795675677,0.114862,38540.0,38537.0,0.30624957]
[1643795676079,0.114862,38540.0,38537.0,0.35624957]
[1643795676280,0.114862,38540.0,38538.0,0.09076513]
[1643795676480,0.114862,38540.0,38537.0,0.35624957]
[1643795676679,0.064862,38540.0,38537.0,0.35624957]
[1643795677355,0.064862,38540.0,38537.0,0.35498949]
[1643795677557,0.064862,38540.0,38537.0,0.35625126]
[1643795678256,0.064862,38540.0,38538.0,0.08897072]
[1643795678659,0.064862,38540.0,38538.0,0.05]
[1643795679258,0.064862,38540.0,38537.0,0.35625125]
[1643795679859,0.064862,38540.0,38537.0,0.35498949]
[1643795680060,0.064862,38540.0,38537.0,0.35625126]
[1643795681079,0.064862,38540.0,38537.0,0.35498949]
[1643795681281,0.064862,38540.0,38537.0,0.35625088]
[1643795681679,0.064862,38540.0,38538.0,0.15454429]
[1643795681883,0.064861,38542.0,38539.0,0.0587836]
[1643795682081,0.2,38545.0,38539.0,0.0587836]
[1643795682082,0.2,38545.0,38540.0,0.5686946]
[1643795682279,0.2,38545.0,38541.0,0.0522]
[1643795682479,0.2,38545.0,38542.0,0.349738]
[1643795682680,0.2,38545.0,38543.0,0.30438548]
[1643795682882,0.2,38545.0,38544.0,0.664591]
[1643795683080,0.2,38545.0,38544.0,0.716791]
[1643795683680,0.30928305,38556.0,38544.0,0.716791]
[1643795683681,0.17560038,38557.0,38545.0,0.7]
[1643795683882,0.17560038,38555.0,38549.0,0.09139754]
[1643795684080,0.17560038,38555.0,38550.0,0.2189566]
[1643795684279,0.06484,38555.0,38551.0,0.25106003]
[1643795684522,0.06484,38555.0,38551.0,0.61010291]
[1643795684722,0.06484,38555.0,38551.0,0.61136411]
[1643795685524,0.06484,38555.0,38551.0,0.67620511]
[1643795685723,0.06484,38555.0,38551.0,0.42388388]
[1643795685922,0.06484,38555.0,38551.0,0.42514508]
[1643795686123,0.06484,38555.0,38552.0,0.19280357]
[1643795687125,0.06484,38555.0,38552.0,0.19406476]
[1643795688186,0.06484,38555.0,38552.0,0.19280357]
[1643795688380,0.24486612,38554.0,38552.0,0.00126116]
[1643795688879,0.29486612,38554.0,38552.0,0.00126116]
[1643795689481,0.35972012,38554.0,38551.0,0.06483971]
[1643795689682,0.10416907,38552.0,38551.0,0.06610087]
[1643795689883,0.10416907,38552.0,38551.0,0.25332393]
[1643795690083,0.10416907,38552.0,38551.0,0.06610087]
[1643795690284,0.10416907,38552.0,38551.0,0.25653511]
[1643795690483,0.10416907,38552.0,38551.0,0.30653511]
[1643795690687,0.10416907,38552.0,38551.0,0.30527395]
[1643795691385,0.114854,38554.0,38551.0,0.30527395]
[1643795691583,0.064854,38554.0,38551.0,0.30527395]
[1643795691784,0.05,38552.0,38551.0,0.30527395]
[1643795692025,0.05,38552.0,38551.0,0.30653513]
[1643795692627,0.09519682,38553.0,38551.0,0.30653513]
[1643795692826,0.09519682,38553.0,38552.0,0.18433305]
[1643795693026,0.09519682,38553.0,38551.0,0.11483971]
[1643795693228,0.09519682,38553.0,38552.0,0.18277479]
[1643795693427,0.09519682,38553.0,38552.0,0.18304515]
[1643795693626,0.09519682,38553.0,38551.0,0.11483971]
[1643795693826,0.09519682,38553.0,38552.0,0.18299063]
[1643795694027,0.09519682,38553.0,38552.0,0.05]
[1643795694226,0.09519682,38553.0,38551.0,0.11483971]
[1643795694427,0.05,38552.0,38551.0,0.11610089]
[1643795694727,0.09519682,38553.0,38551.0,0.11610089]
[1643795695327,0.09519682,38553.0,38551.0,0.11483971]
[1643795695783,0.05,38552.0,38551.0,0.11483971]
[1643795697178,0.05,38552.0,38551.0,0.06483971]
[1643795700726,0.05,38552.0,38551.0,0.25502128]
[1643795701127,0.04989635,38552.0,38551.0,0.25502128]
[1643795701926,0.04989635,38552.0,38551.0,0.30502128]
[1643795702729,0.04989635,38552.0,38551.0,0.06483971]
[1643795703184,0.04989635,38552.0,38550.0,0.0012612]
[1643795703777,0.04989635,38552.0,38550.0,0.0002]
[1643795703778,0.0522,38551.0,38550.0,0.0002]
[1643795703976,0.117067,38551.0,38550.0,0.0002]
[1643795705978,0.112067,38551.0,38550.0,0.0002]
[1643795708632,0.059867,38551.0,38550.0,0.18503886]
[1643795709831,0.059867,38551.0,38550.0,0.0002]
[1643795710032,0.054867,38551.0,38550.0,0.18333774]
[1643795710231,0.054867,38551.0,38550.0,0.0002]
[1643795710432,0.054867,38551.0,38550.0,0.18557342]
[1643795710683,0.054867,38551.0,38550.0,0.23557342]
[1643795710881,0.054867,38551.0,38550.0,0.58531142]
[1643795712281,0.001,38564.0,38550.0,0.68531142]
[1643795712282,0.064832,38554.0,38550.0,0.68531142]
[1643795712481,0.064832,38554.0,38551.0,0.465738]
[1643795712680,0.064832,38554.0,38552.0,0.21985954]
[1643795712880,0.064832,38554.0,38553.0,0.349738]
[1643795713081,0.09071845,38563.0,38553.0,0.479399]
[1643795713280,0.06483,38563.0,38556.0,0.40937553]
[1643795713481,0.06483,38563.0,38557.0,0.06482945]
[1643795713683,0.00133609,38560.0,38557.0,0.06482945]
[1643795713884,0.00133609,38560.0,38558.0,1.03743406]
[1643795714089,0.00133609,38560.0,38559.0,0.18727286]
[1643795714288,0.00033609,38567.0,38560.0,0.664827]
[1643795714528,0.08366366,38566.0,38561.0,0.23544046]
[1643795714927,0.13366366,38566.0,38561.0,0.23544046]
[1643795716130,0.129653,38564.0,38561.0,0.23544046]
[1643795716329,0.179653,38564.0,38561.0,0.23544046]
[1643795716731,0.179653,38564.0,38560.0,0.11482871]
[1643795717129,0.179653,38564.0,38561.0,0.05]
[1643795717329,0.18032437,38564.0,38560.0,0.11482871]
[1643795718184,0.179653,38564.0,38560.0,0.11482871]
[1643795718377,0.18098906,38564.0,38560.0,0.11482871]
[1643795719380,0.179653,38564.0,38560.0,0.11482871]
[1643795719576,0.18098906,38564.0,38560.0,0.11482871]
[1643795720576,0.179653,38564.0,38560.0,0.11482871]
[1643795720778,0.18068992,38564.0,38560.0,0.11482871]
[1643795721776,0.179653,38564.0,38560.0,0.11482871]
[1643795722034,0.48013231,38564.0,38560.0,0.11482871]
[1643795722432,0.48013231,38564.0,38560.0,0.06482871]
[1643795723032,0.47909539,38564.0,38560.0,0.06482871]
[1643795723233,0.48013231,38564.0,38560.0,0.06482871]
[1643795723838,0.48013231,38564.0,38556.0,0.2537155]
[1643795724038,0.72391855,38564.0,38556.0,0.2537155]
[1643795724237,0.72391855,38564.0,38551.0,0.1223]
[1643795724238,0.47909539,38564.0,38551.0,0.1223]
[1643795724437,0.47909539,38564.0,38556.0,0.00127177]
[1643795724438,0.00110346,38562.0,38556.0,0.00127177]
[1643795724641,0.064851,38561.0,38556.0,0.00127177]
[1643795725039,0.114851,38561.0,38556.0,0.00127177]
[1643795725440,0.09749153,38557.0,38553.0,0.12968472]
[1643795725687,0.16233953,38557.0,38556.0,0.00127175]
[1643795726682,0.16233953,38557.0,38554.0,0.22765465]
[1643795726882,0.16233953,38557.0,38555.0,0.00127177]
[1643795727883,0.16233953,38557.0,38554.0,0.22765465]
[1643795728083,0.16233953,38557.0,38554.0,0.22891896]
[1643795728985,0.16233953,38557.0,38554.0,0.22765465]
[1643795729185,0.16233953,38557.0,38554.0,0.22891897]
[1643795729830,0.064848,38557.0,38554.0,0.22891897]
[1643795730028,0.064848,38557.0,38554.0,0.29376106]
[1643795730229,0.064848,38557.0,38554.0,0.29249674]
[1643795730231,6.519e-05,38556.0,38554.0,0.29249674]
[1643795730429,6.519e-05,38556.0,38554.0,0.29376106]
[1643795731428,6.519e-05,38556.0,38554.0,0.29249674]
[1643795732629,6.519e-05,38556.0,38554.0,0.06484209]
[1643795736282,6.519e-05,38556.0,38555.0,0.18333747]
[1643795737232,6.519e-05,38556.0,38554.0,0.06484209]
[1643795737432,6.519e-05,38556.0,38554.0,0.24755784]
[1643795737637,6.519e-05,38556.0,38554.0,0.24882347]
[1643795737835,6.519e-05,38556.0,38555.0,0.18377014]
[1643795738438,6.519e-05,38556.0,38555.0,0.23377014]
[1643795738637,6.519e-05,38556.0,38555.0,0.58350814]
[1643795739235,0.129695,38558.0,38556.0,0.7]
[1643795739438,0.129695,38558.0,38557.0,0.56959754]
[1643795739638,0.129695,38558.0,38557.0,0.61959754]
[1643795740038,0.129695,38558.0,38557.0,0.399738]
[1643795740977,0.179695,38558.0,38557.0,0.61577651]
[1643795742179,0.179695,38558.0,38557.0,0.399738]
[1643795743981,0.179695,38558.0,38557.0,0.60131687]
[1643795744929,0.179695,38558.0,38557.0,0.25157887]
[1643795745131,0.179695,38558.0,38557.0,0.60131687]
[1643795745433,0.179695,38558.0,38557.0,0.86520609]
[1643795745631,0.179695,38558.0,38557.0,0.61362722]
[1643795745834,0.179695,38558.0,38557.0,0.31388922]
[1643795746232,0.179695,38558.0,38557.0,0.66362722]
[1643795746435,0.179695,38558.0,38557.0,0.84742781]
[1643795750085,0.08932728,38563.0,38558.0,0.25]
[1643795750285,0.08932728,38563.0,38558.0,0.2989088]
[1643795750485,0.08932728,38563.0,38560.0,0.0489088]
[1643795750686,0.08932728,38563.0,38562.0,0.0489088]
[1643795750883,0.08932728,38563.0,38562.0,0.54005387]
[1643795751083,0.08932728,38563.0,38562.0,0.88979187]
[1643795751928,0.08932728,38563.0,38562.0,0.3986468]
[1643795752129,0.08932728,38563.0,38562.0,0.0489088]
[1643795752329,0.00143609,38567.0,38560.0,0.12965723]
[1643795752529,0.00143609,38567.0,38560.0,0.06482823]
[1643795752729,0.00143609,38567.0,38564.0,0.22667996]
[1643795752931,0.00143609,38567.0,38564.0,0.19936726]
[1643795753128,0.00143609,38567.0,38565.0,0.349738]
[1643795753331,0.00143609,38567.0,38565.0,0.414557]
[1643795753931,0.00143609,38567.0,38566.0,0.22876368]
[1643795754131,0.00143609,38567.0,38566.0,0.57850168]
[1643795754532,0.00143609,38567.0,38566.0,0.349738]
[1643795754732,0.00143609,38567.0,38565.0,0.28418584]
[1643795754932,0.00143609,38567.0,38566.0,0.56910484]
[1643795755132,0.00143609,38567.0,38566.0,0.55263006]
[1643795756788,0.00143609,38567.0,38566.0,0.20289206]
[1643795757190,0.00143609,38567.0,38564.0,0.19936726]
[1643795757791,0.00143609,38567.0,38564.0,0.38323411]
[1643795758193,0.00277128,38567.0,38564.0,0.38323411]
[1643795758991,0.00277128,38567.0,38564.0,0.19936726]
[1643795758992,0.00143609,38567.0,38564.0,0.19936726]
[1643795759428,0.00277128,38567.0,38564.0,0.19936726]
[1643795760230,0.00143609,38567.0,38564.0,0.19936726]
[1643795760431,0.00277128,38567.0,38562.0,0.03717581]
[1643795760830,0.00277128,38567.0,38559.0,0.186331]
[1643795761531,0.08887201,38564.0,38560.0,0.06482961]
[1643795762832,0.0902072,38564.0,38560.0,0.06482961]
[1643795763482,0.0902072,38564.0,38559.0,0.1215]
[1643795763683,0.0902072,38564.0,38558.0,0.18397574]
[1643795763883,0.0902072,38564.0,38555.0,0.064838]
[1643795763884,0.08887201,38564.0,38556.0,0.26458352]
[1643795764081,0.09020718,38564.0,38558.0,0.00139032]
[1643795765083,0.27606173,38560.0,38557.0,0.18307097]
[1643795765287,0.0522,38559.0,38558.0,0.00139032]
[1643795765484,0.7522,38559.0,38558.0,0.00139032]
[1643795766387,0.34338038,38555.0,38554.0,0.3917]
[1643795766586,0.39558038,38555.0,38551.0,0.27181581]
[1643795766784,0.39558038,38555.0,38549.0,0.55060355]
[1643795767035,0.26806269,38554.0,38553.0,0.02065484]
[1643795767336,0.26806269,38554.0,38549.0,0.55060355]
[1643795767534,0.26806269,38554.0,38549.0,0.43010355]
[1643795767738,0.26806269,38554.0,38552.0,0.00139043]
[1643795767935,0.48187024,38554.0,38552.0,0.00139043]
[1643795768135,0.26806269,38554.0,38552.0,0.00139043]
[1643795768737,0.14558038,38555.0,38550.0,0.23294332]
[1643795768940,0.14558038,38555.0,38551.0,0.06623523]
[1643795769941,0.14558038,38555.0,38551.0,0.06484479]
[1643795770143,0.14558038,38555.0,38551.0,0.06623523]
[1643795770983,0.14558038,38555.0,38551.0,0.06484479]
[1643795771186,0.14558038,38555.0,38551.0,0.06623523]
[1643795772186,0.0522,38555.0,38551.0,0.12968879]
[1643795772386,0.0522,38555.0,38551.0,0.13107923]
[1643795773186,0.0522,38555.0,38554.0,0.28939135]
[1643795773991,0.0522,38561.0,38554.0,0.33939135]
[1643795774192,0.24620778,38566.0,38554.0,0.33939135]
[1643795774193,0.29840778,38566.0,38554.0,0.33939135]
[1643795774444,0.09859929,38564.0,38554.0,0.33939135]
[1643795774646,0.09859929,38564.0,38554.0,0.52811059]
[1643795774845,0.33297451,38566.0,38557.0,0.00072432]
[1643795775046,0.34561051,38566.0,38558.0,0.064832]
[1643795775248,0.34561051,38566.0,38560.0,0.29402987]
[1643795775846,0.00143609,38567.0,38560.0,0.29402987]
[1643795776046,0.0013385,38565.0,38560.0,0.39805866]
[1643795776446,0.0013385,38565.0,38562.0,0.28096542]
[1643795777049,0.00143609,38567.0,38562.0,0.28096542]
[1643795777347,0.0013385,38565.0,38562.0,0.28096542]
[1643795777747,0.0013385,38565.0,38562.0,0.34579342]
[1643795778388,0.00143609,38567.0,38563.0,0.18274714]
[1643795778588,0.0013385,38565.0,38563.0,0.24756987]
[1643795778786,0.0013385,38565.0,38564.0,0.18456448]
[1643795778987,0.00124616,38565.0,38564.0,0.18456448]
[1643795779490,0.00143609,38567.0,38564.0,0.18456448]
[1643795779889,0.00143609,38567.0,38564.0,0.05]
[1643795780089,0.00143609,38567.0,38564.0,0.114824]
[1643795780289,0.00143609,38567.0,38564.0,0.05]
[1643795780490,0.00143609,38567.0,38563.0,0.06482273]
[1643795783337,0.00277436,38567.0,38563.0,0.06482273]
[1643795784337,0.00143609,38567.0,38563.0,0.06482273]
[1643795784537,0.00277436,38567.0,38563.0,0.06482273]
[1643795785439,0.00143609,38567.0,38563.0,0.06482273]
[1643795785684,0.00277436,38567.0,38563.0,0.06482273]
[1643795786684,0.00143609,38567.0,38563.0,0.06482273]
[1643795786885,0.00277436,38567.0,38563.0,0.06482273]
[1643795787784,0.06004274,38572.0,38563.0,0.06482273]
[1643795787986,0.10433815,38567.0,38563.0,0.06482273]
[1643795788184,0.10567642,38567.0,38563.0,0.06482273]
[1643795789186,0.10433815,38567.0,38563.0,0.08322357]
[1643795790043,0.37804638,38567.0,38563.0,0.06482273]
[1643795790244,0.37804638,38567.0,38560.0,0.12965003]
[1643795790541,0.44288238,38567.0,38560.0,0.01849031]
[1643795791140,0.44288238,38567.0,38560.0,0.22532091]
[1643795791340,0.44288238,38567.0,38560.0,0.40766984]
[1643795791543,0.44288238,38567.0,38560.0,0.22532091]
[1643795791740,0.44288238,38567.0,38562.0,0.00139368]
[1643795792742,0.44288238,38567.0,38560.0,0.08332391]
[1643795792940,0.44288238,38567.0,38562.0,0.00139367]
[1643795793984,0.44288238,38567.0,38560.0,0.08332391]
[1643795794184,0.44288238,38567.0,38562.0,0.00139367]
[1643795795087,0.44288238,38567.0,38560.0,0.0648336]
[1643795795287,0.44288238,38567.0,38562.0,0.00139367]
[1643795796384,0.44288238,38567.0,38560.0,0.06483642]
[1643795796586,0.44288238,38567.0,38562.0,0.00139367]
[1643795797235,0.37379919,38567.0,38562.0,0.00139367]
[1643795797434,0.37379919,38567.0,38560.0,0.06483642]
[1643795797634,0.37379919,38567.0,38562.0,0.00139367]
[1643795798134,0.43863519,38567.0,38562.0,0.00139367]
[1643795800238,0.43863519,38567.0,38561.0,0.06483374]
[1643795800440,0.43863519,38567.0,38559.0,0.29335834]
[1643795800686,0.43863519,38567.0,38560.0,0.06483645]
[1643795801291,0.43863519,38567.0,38562.0,0.00124436]
[1643795802287,0.43863519,38567.0,38560.0,0.06483645]
[1643795802491,0.43863519,38567.0,38562.0,0.00124435]
[1643795803489,0.43863519,38567.0,38561.0,0.06483388]
[1643795803690,0.43863519,38567.0,38562.0,0.00124435]
[1643795804837,0.43863519,38567.0,38562.0,0.00139367]
[1643795805437,0.37379919,38567.0,38562.0,0.00139367]
[1643795805639,0.10353483,38569.0,38562.0,0.00139367]
[1643795805836,0.10353483,38569.0,38561.0,0.19450388]
[1643795805837,0.1022,38569.0,38561.0,0.19450388]
[1643795806037,0.10353487,38569.0,38563.0,0.06483404]
[1643795807138,0.1022,38569.0,38563.0,0.06483404]
[1643795807339,0.08324086,38566.0,38563.0,0.06483404]
[1643795808485,0.36588334,38566.0,38563.0,0.06483404]
[1643795808885,0.36588334,38566.0,38562.0,0.00139367]
[1643795809086,0.41588334,38566.0,38562.0,0.00139367]
[1643795809487,0.0522,38565.0,38560.0,0.12966808]
[1643795809686,0.0522,38565.0,38562.0,0.00139367]
[1643795810691,0.0522,38565.0,38559.0,0.29153433]
[1643795810887,0.0522,38565.0,38562.0,0.00139368]
[1643795811087,0.08324086,38566.0,38562.0,0.06622442]
[1643795811932,0.08324086,38566.0,38562.0,0.06483074]
[1643795812133,0.08324086,38566.0,38562.0,0.06622441]
[1643795813032,0.08324086,38566.0,38562.0,0.06483074]
[1643795813434,0.08324086,38566.0,38562.0,0.06622441]
[1643795813632,0.064832,38568.0,38562.0,0.06622441]
[1643795814133,0.00133482,38569.0,38564.0,0.06482802]
[1643795814333,0.064828,38570.0,38564.0,0.06482802]
[1643795814533,0.00133485,38569.0,38564.0,0.06482802]
[1643795814933,0.09127424,38566.0,38564.0,0.06482802]
[1643795815235,0.09127424,38566.0,38562.0,0.00139368]
[1643795815532,0.09127424,38566.0,38561.0,0.12965446]
[1643795815795,0.09127424,38566.0,38562.0,0.00139367]
[1643795816196,0.08951893,38566.0,38562.0,0.00139367]
[1643795816794,0.08951893,38566.0,38560.0,0.18167651]
[1643795816994,0.15435593,38566.0,38562.0,0.00072779]
[1643795817996,0.15435593,38566.0,38561.0,0.06483474]
[1643795818193,0.15435593,38566.0,38562.0,0.00072779]
[1643795818999,0.15435593,38566.0,38562.0,0.00063831]
[1643795819198,0.15435593,38566.0,38561.0,0.06483474]
[1643795819440,0.15435593,38566.0,38562.0,0.00139532]
[1643795819645,0.0522,38565.0,38562.0,0.00139532]
[1643795820241,0.0522,38565.0,38557.0,0.113]
[1643795820441,0.0522,38565.0,38562.0,0.00072604]
[1643795821443,0.0522,38565.0,38558.0,0.25416356]
[1643795821641,0.0522,38565.0,38562.0,0.00072604]
[1643795822443,0.25359084,38564.0,38562.0,0.00072604]
[1643795822643,0.25359084,38564.0,38561.0,0.06483564]
[1643795822843,0.25359084,38564.0,38561.0,0.06623086]
[1643795823486,0.31842984,38564.0,38561.0,0.00139522]
[1643795823691,0.05,38561.0,38557.0,0.15331285]
[1643795823889,0.881894,38563.0,38557.0,0.04031285]
[1643795824087,0.05,38560.0,38557.0,0.04031285]
[1643795824288,0.0522,38559.0,38557.0,0.04031285]
[1643795824488,1.00564633,38558.0,38557.0,0.04031285]
[1643795824989,1.05564633,38558.0,38557.0,0.04031285]
[1643795825289,1.23712123,38558.0,38557.0,0.04031285]
[1643795825692,1.23712123,38558.0,38553.0,0.3616]
[1643795825889,0.09904596,38557.0,38553.0,0.3616]
[1643795826089,0.0522,38556.0,38553.0,0.3616]
[1643795826291,0.21275336,38555.0,38550.0,0.12969684]
[1643795826491,0.064853,38554.0,38550.0,0.12969684]
[1643795826692,0.064853,38554.0,38551.0,0.02089466]
[1643795827136,0.064853,38554.0,38549.0,0.22304288]
[1643795827738,0.064853,38554.0,38550.0,0.0013937]
[1643795827937,0.064853,38554.0,38550.0,0.06624412]
[1643795828738,0.0522,38555.0,38545.0,0.03847439]
[1643795828739,0.064858,38551.0,38545.0,0.03847439]
[1643795828942,0.31124656,38552.0,38550.0,0.00139369]
[1643795829140,0.6022,38551.0,38550.0,0.00139369]
[1643795829739,0.7022,38551.0,38550.0,0.00139369]
[1643795829939,0.06487,38550.0,38547.0,0.01811203]
[1643795830141,0.06487,38550.0,38549.0,0.00139371]
[1643795830988,0.86181368,38550.0,38549.0,0.00139371]
[1643795831191,0.86181368,38550.0,38544.0,0.1211]
[1643795831390,0.09073058,38547.0,38544.0,0.1211]
[1643795831592,0.33646653,38546.0,38544.0,0.0002]
[1643795831790,0.20862375,38545.0,38544.0,0.0002]
[1643795831989,0.167068,38546.0,38544.0,0.0002]
[1643795832190,0.20862375,38545.0,38544.0,0.0002]
[1643795832590,0.167068,38546.0,38544.0,0.0002]
[1643795832794,0.117068,38546.0,38544.0,0.0002]
[1643795833090,0.6311703,38546.0,38544.0,0.0002]
[1643795833291,0.43205217,38546.0,38544.0,0.0002]
[1643795833691,0.63245562,38546.0,38544.0,0.0002]
[1643795834095,0.43205217,38546.0,38544.0,0.0002]
[1643795834736,0.48205217,38546.0,38544.0,0.0002]
[1643795836137,0.22295835,38545.0,38544.0,0.0002]
[1643795836337,0.27295835,38545.0,38544.0,0.0002]
[1643795836740,0.32515835,38545.0,38544.0,0.0002]
[1643795839084,0.09840617,38540.0,38538.0,0.08887057]
[1643795839288,0.09840617,38540.0,38539.0,2.1137799]
[1643795839982,0.09840617,38540.0,38539.0,2.39255296]
[1643795840184,0.09840617,38540.0,38539.0,2.46993629]
[1643795842241,0.09840617,38540.0,38539.0,2.51993629]
[1643795842740,0.00067248,38554.0,38539.0,2.51993629]
[1643795842741,0.00067248,38554.0,38540.0,0.7]
[1643795843039,0.1144,38563.0,38551.0,0.25802253]
[1643795843239,0.064842,38559.0,38552.0,0.20720675]
[1643795843441,0.00134523,38554.0,38547.0,0.34124208]
[1643795843939,0.00134523,38554.0,38552.0,0.24205066]
[1643795844343,0.08212626,38558.0,38552.0,0.50631236]
[1643795844539,0.0013454,38555.0,38552.0,0.50631236]
[1643795844839,0.0013454,38555.0,38553.0,0.2030302]
[1643795845438,0.064841,38559.0,38553.0,0.2030302]
[1643795845702,0.0013454,38556.0,38553.0,0.2030302]
[1643795846297,0.0013454,38556.0,38553.0,0.26786953]
[1643795846498,0.0013454,38556.0,38553.0,0.24670008]
[1643795846699,0.07498409,38559.0,38552.0,0.24205066]
[1643795846902,0.064845,38557.0,38552.0,0.24205066]
[1643795847499,0.064845,38557.0,38553.0,0.18311431]
[1643795848402,0.064845,38557.0,38552.0,0.28322243]
[1643795848801,0.15775797,38557.0,38552.0,0.28322243]
[1643795849001,0.15775797,38557.0,38553.0,0.18188624]
[1643795849201,0.15775797,38557.0,38552.0,0.28322243]
[1643795849443,0.15310664,38557.0,38553.0,0.3]
[1643795849641,0.06019367,38557.0,38553.0,0.48206086]
[1643795849840,0.06019367,38557.0,38553.0,0.48370558]
[1643795850041,0.114841,38559.0,38553.0,0.3]
[1643795850440,0.114841,38559.0,38553.0,0.48123117]
[1643795850642,0.114841,38559.0,38553.0,0.3]
[1643795850943,0.114841,38559.0,38552.0,0.08426732]
[1643795851241,0.114841,38559.0,38550.0,0.34078586]
[1643795851443,0.05,38558.0,38550.0,0.27594086]
[1643795851641,0.06485,38557.0,38550.0,0.27594086]
[1643795851841,0.05,38555.0,38550.0,0.27594086]
[1643795852442,0.08801139,38553.0,38550.0,0.27594086]
[1643795852643,0.05,38555.0,38550.0,0.27594086]
[1643795852943,0.06485,38554.0,38550.0,0.27594086]
[1643795853385,0.11485,38554.0,38550.0,0.27594086]
[1643795853684,0.21880914,38554.0,38550.0,0.27594086]
[1643795855185,0.16880914,38554.0,38550.0,0.55512988]
[1643795855384,0.16880914,38554.0,38551.0,0.18258789]
[1643795855784,0.21880914,38554.0,38551.0,0.18258789]
[1643795856185,0.06485,38554.0,38550.0,0.55512988]
[1643795856386,0.06485,38554.0,38551.0,0.536696]
[1643795856587,0.06485,38554.0,38551.0,0.18361538]
[1643795857437,0.06485,38554.0,38548.0,0.20357756]
[1643795857637,0.06485,38554.0,38548.0,0.20497292]
[1643795857837,0.11485,38554.0,38548.0,0.20497292]
[1643795858036,0.06485,38554.0,38548.0,0.20497292]
[1643795858338,0.11485,38554.0,38548.0,0.20497292]
[1643795858737,0.36741443,38554.0,38548.0,0.20357756]
[1643795858936,0.36741443,38554.0,38548.0,0.00139534]
[1643795859337,0.05,38553.0,38548.0,0.00139534]
[1643795859539,0.064852,38552.0,38548.0,0.00139534]
[1643795859941,0.064852,38552.0,38547.0,0.52381215]
[1643795860139,0.064852,38552.0,38548.0,0.00139532]
[1643795860538,0.064852,38552.0,38548.0,0.06624432]
[1643795861217,0.064852,38552.0,38548.0,0.064849]
[1643795861414,0.064852,38552.0,38548.0,0.06624432]
[1643795862317,0.064852,38552.0,38547.0,0.28526224]
[1643795862516,0.114852,38552.0,38548.0,0.00139532]
[1643795862719,0.05,38549.0,38548.0,0.00139532]
[1643795863115,0.7522,38549.0,38548.0,0.00139532]
[1643795863315,0.8022,38549.0,38548.0,0.00139532]
[1643795863515,0.8022,38549.0,38545.0,0.01927184]
[1643795863815,0.41655163,38546.0,38541.0,0.1224]
[1643795864015,0.46655163,38546.0,38542.0,0.22386736]
[1643795864641,0.41655163,38546.0,38540.0,0.3909]
[1643795864844,0.41655163,38546.0,38542.0,0.00139542]
[1643795865044,0.05,38544.0,38542.0,0.00139542]